lending/lending_fUSD_20250122
["ID","MTS","AMOUNT","RATE_DAILY","PERIOD"]
[349955086,1737535839511,-500.0,0.00019445,2]
[349955087,1737535839521,-500.0,0.00019445,2]
[349955088,1737535839530,-444.41380406,0.00019445,2]
[349955089,1737535839542,-55.58619594,0.00019445,2]
[349955090,1737535839551,-500.0,0.00019445,2]
[349955091,1737535839560,-500.0,0.00019445,2]
[349955092,1737535839570,-500.0,0.00019445,2]
[349955093,1737535839579,-500.0,0.00019445,2]
[349955094,1737535839589,-790.06,0.00019445,2]
[349955095,1737535839599,-500.0,0.00019445,2]
[349955096,1737535839608,-2039.56180406,0.00019445,2]
[349955097,1737535839619,-230.17819594,0.00019445,2]
[349955098,1737535839628,-500.0,0.00019445,2]
[349955099,1737535839638,-500.0,0.00019445,2]
[349955100,1737535839648,-3877.41157706,0.00019445,2]
[349955101,1737535839667,-1002.06842294,0.00019445,2]
[349955102,1737535839676,-200.0,0.00019445,2]
[349955103,1737535839687,-500.0,0.00019445,2]
[349955104,1737535839696,-1144.32,0.00019445,2]
[349955105,1737535839706,-504.21174547,0.00019445,2]
[349955106,1737535839716,-500.0,0.00019445,2]
[349955107,1737535839726,-500.0,0.00019445,2]
[349955108,1737535839736,-502.42269152,0.00019445,2]
[349955109,1737535839746,-500.0,0.00019445,2]
[349955110,1737535839755,-2054.82,0.00019445,2]
[349955111,1737535839765,-500.0,0.00019445,2]
[349955112,1737535839774,-500.0,0.00019445,2]
[349955113,1737535839783,-827.92,0.00019445,2]
[349955114,1737535839793,-1961.71,0.00019445,2]
[349955115,1737535839804,-505.67187519,0.00019445,2]
[349955116,1737535839813,-500.0,0.00019445,2]
[349955117,1737535839823,-504.35458178,0.00019445,2]
[349955118,1737535839833,-500.0,0.00019445,2]
[349955119,1737535839844,-500.0,0.00019445,2]
[349955120,1737535839854,-78.5971831,0.00019445,2]
[349955121,1737535839869,-1337.8428169,0.00019445,2]
[349955122,1737535839879,-448.08348432,0.00019445,2]
[349955123,1737535839889,-500.0,0.00019445,2]
[349955124,1737535839899,-3220.53,0.00019445,2]
[349955125,1737535839908,-500.0,0.00019445,2]
[349955127,1737535839921,-500.0,0.00019445,2]
[349955128,1737535839931,-500.0,0.00019445,2]
[349955129,1737535839941,-500.0,0.00019445,2]
[349955130,1737535839950,-500.0,0.00019445,2]
[349955131,1737535839961,-500.0,0.00019445,2]
[349955133,1737535840111,-2309.19,0.00019445,2]
[349955134,1737535840158,-500.0,0.00019445,2]
[349955135,1737535840168,-500.0,0.00019445,2]
[349955136,1737535840179,-1086.97,0.00019445,2]
[349955137,1737535840188,-511.86265427,0.00019445,2]
[349955138,1737535840197,-500.0,0.00019445,2]
[349955139,1737535840207,-500.0,0.00019445,2]
[349955140,1737535840216,-836.64,0.00019445,2]
[349955141,1737535840224,-500.0,0.00019445,2]
[349955142,1737535840233,-500.0,0.00019445,2]
[349955143,1737535840243,-500.0,0.00019445,2]
[349955144,1737535840252,-1125.48,0.00019445,2]
[349955145,1737535840261,-500.0,0.00019445,2]
[349955146,1737535840270,-1355.86,0.00019445,2]
[349955147,1737535840279,-500.0,0.00019445,2]
[349955148,1737535840288,-500.0,0.00019445,2]
[349955149,1737535840297,-500.0,0.00019445,2]
[349955150,1737535840306,-537.78,0.00019445,2]
[349955151,1737535840315,-500.0,0.00019445,2]
[349955152,1737535840324,-644.18,0.00019445,2]
[349955153,1737535840333,-4222.06,0.00019445,2]
[349955154,1737535840343,-500.0,0.00019445,2]
[349955155,1737535840352,-1148.64,0.00019445,2]
[349955156,1737535840362,-500.0,0.00019445,2]
[349955157,1737535840371,-500.0,0.00019445,2]
[349955158,1737535840380,-1996.49,0.00019445,2]
[349955159,1737535840390,-500.0,0.00019445,2]
[349955160,1737535840399,-500.0,0.00019445,2]
[349955161,1737535840408,-3033.92,0.00019445,2]
[349955162,1737535840418,-221.58523925,0.00019445,2]
[349955163,1737535840428,-500.0,0.00019445,2]
[349955164,1737535840438,-2532.04,0.00019445,2]
[349955165,1737535840447,-500.0,0.00019445,2]
[349955166,1737535840457,-574.92,0.00019445,2]
[349955167,1737535840466,-940.76,0.00019445,2]
[349955168,1737535840477,-500.0,0.00019445,2]
[349955169,1737535840486,-413.68392087,0.00019445,2]
[349955170,1737535840498,-1198.58,0.00019445,2]
[349955171,1737535840507,-500.0,0.00019445,2]
[349955172,1737535840516,-355.80684008,0.00019445,2]
[349955173,1737535840525,-500.0,0.00019445,2]
[349955174,1737535840535,-1231.92,0.00019445,2]
[349955175,1737535840544,-500.0,0.00019445,2]
[349955176,1737535840553,-500.0,0.00019445,2]
[349955177,1737535840563,-1021.16,0.00019445,2]
[349955178,1737535840572,-500.0,0.00019445,2]
[349955179,1737535840582,-850.43,0.00019445,2]
[349955180,1737535840591,-500.0,0.00019445,2]
[349955181,1737535840601,-626.58,0.00019445,2]
[349955182,1737535840610,-1522.34,0.00019445,2]
[349955183,1737535840619,-500.0,0.00019445,2]
[349955184,1737535840628,-500.0,0.00019445,2]
[349955185,1737535840637,-1365.0,0.00019445,2]
[349955186,1737535840647,-500.0,0.00019445,2]
[349955187,1737535840656,-500.0,0.00019445,2]
[349955188,1737535840665,-603.87,0.00019445,2]
[349955189,1737535840674,-500.0,0.00019445,2]
[349955190,1737535840685,-500.0,0.00019445,2]
[349955191,1737535840694,-500.0,0.00019445,2]
[349955192,1737535840704,-1288.07,0.00019445,2]
[349955193,1737535840713,-844.42,0.00019445,2]
[349955194,1737535840723,-500.0,0.00019445,2]
[349955195,1737535840732,-566.83,0.00019445,2]
[349955196,1737535840741,-500.0,0.00019445,2]
[349955197,1737535840750,-537.66,0.00019445,2]
[349955198,1737535840760,-511.79,0.00019445,2]
[349955199,1737535840769,-913.82,0.00019445,2]
[349955200,1737535840778,-500.0,0.00019445,2]
[349955201,1737535840788,-2700.97,0.00019445,2]
[349955202,1737535840797,-500.0,0.00019445,2]
[349955204,1737535840806,-500.0,0.00019445,2]
[349955206,1737535840815,-500.0,0.00019445,2]
[349955207,1737535840824,-500.0,0.00019445,2]
[349955208,1737535840834,-1158.45,0.00019445,2]
[349955209,1737535840843,-500.0,0.00019445,2]
[349955210,1737535840852,-872.83,0.00019445,2]
[349955211,1737535840861,-500.0,0.00019445,2]
[349955212,1737535840871,-2209.36,0.00019445,2]
[349955213,1737535840880,-3528.61,0.00019445,2]
[349955214,1737535840889,-522.48411876,0.00019445,2]
[349955215,1737535840898,-773.09,0.00019445,2]
[349955216,1737535840907,-500.0,0.00019445,2]
[349955217,1737535840921,-500.0,0.00019445,2]
[349955218,1737535840932,-644.2039337,0.00019445,2]
[349955219,1737535840942,-614.04,0.00019445,2]
[349955220,1737535840951,-1417.55,0.00019445,2]
[349955221,1737535840963,-500.0,0.00019445,2]
[349955222,1737535840973,-500.0,0.00019445,2]
[349955223,1737535840982,-500.0,0.00019445,2]
[349955224,1737535840994,-504.04732293,0.00019445,2]
[349955225,1737535841004,-1067.42,0.00019445,2]
[349955226,1737535841014,-500.0,0.00019445,2]
[349955227,1737535841023,-500.0,0.00019445,2]
[349955228,1737535841032,-502.15365608,0.00019445,2]
[349955229,1737535841041,-500.0,0.00019445,2]
[349955230,1737535841051,-2595.8,0.00019445,2]
[349955231,1737535841060,-633.97,0.00019445,2]
[349955232,1737535841069,-500.0,0.00019445,2]
[349955233,1737535841078,-500.0,0.00019445,2]
[349955234,1737535841088,-1154.33,0.00019445,2]
[349955235,1737535841097,-628.26,0.00019445,2]
[349955236,1737535841106,-500.0,0.00019445,2]
[349955237,1737535841115,-500.0,0.00019445,2]
[349955238,1737535841125,-500.0,0.00019445,2]
[349955239,1737535841134,-500.0,0.00019445,2]
[349955240,1737535841143,-500.0,0.00019445,2]
[349955241,1737535841153,-500.0,0.00019445,2]
[349955242,1737535841162,-500.0,0.00019445,2]
[349955243,1737535841171,-500.0,0.00019445,2]
[349955244,1737535841182,-1232.72,0.00019445,2]
[349955245,1737535841191,-500.0,0.00019445,2]
[349955246,1737535841200,-4385.76,0.00019445,2]
[349955247,1737535841210,-851.04,0.00019445,2]
[349955248,1737535841219,-500.0,0.00019445,2]
[349955249,1737535841228,-500.0,0.00019445,2]
[349955250,1737535841237,-1178.01,0.00019445,2]
[349955251,1737535841246,-500.0,0.00019445,2]
[349955252,1737535841256,-500.0,0.00019445,2]
[349955253,1737535841265,-2089.41,0.00019445,2]
[349955254,1737535841275,-844.74,0.00019445,2]
[349955255,1737535841284,-500.0,0.00019445,2]
[349955256,1737535841293,-500.0,0.00019445,2]
[349955257,1737535841303,-577.47,0.00019445,2]
[349955258,1737535841312,-500.0,0.00019445,2]
[349955259,1737535841322,-500.0,0.00019445,2]
[349955260,1737535841331,-530.04009133,0.00019445,2]
[349955261,1737535841341,-690.97,0.00019445,2]
[349955262,1737535841350,-500.0,0.00019445,2]
[349955263,1737535841360,-500.0,0.00019445,2]
[349955264,1737535841369,-500.0,0.00019445,2]
[349955265,1737535841379,-1722.38,0.00019445,2]
[349955266,1737535841388,-500.0,0.00019445,2]
[349955267,1737535841398,-1001.69,0.00019445,2]
[349955268,1737535841408,-500.0,0.00019445,2]
[349955269,1737535841418,-799.05,0.00019445,2]
[349955270,1737535841427,-1433.52,0.00019445,2]
[349955271,1737535841438,-680.57,0.00019445,2]
[349955272,1737535841447,-500.0,0.00019445,2]
[349955273,1737535841456,-500.0,0.00019445,2]
[349955274,1737535841466,-500.0,0.00019445,2]
[349955275,1737535841476,-866.15,0.00019445,2]
[349955276,1737535841486,-500.0,0.00019445,2]
[349955277,1737535841495,-500.0,0.00019445,2]
[349955278,1737535841504,-500.0,0.00019445,2]
[349955279,1737535841514,-525.26,0.00019445,2]
[349955280,1737535841523,-500.0,0.00019445,2]
[349955281,1737535841533,-658.51,0.00019445,2]
[349955282,1737535841543,-501.89388927,0.00019445,2]
[349955283,1737535841553,-500.0,0.00019445,2]
[349955284,1737535841562,-500.0,0.00019445,2]
[349955285,1737535841571,-1460.47,0.00019445,2]
[349955286,1737535841580,-500.0,0.00019445,2]
[349955287,1737535841590,-1012.24,0.00019445,2]
[349955288,1737535841600,-500.0,0.00019445,2]
[349955289,1737535841609,-425.30772293,0.00019445,2]
[349955290,1737535841619,-703.88,0.00019445,2]
[349955291,1737535841628,-500.0,0.00019445,2]
[349955292,1737535841637,-500.0,0.00019445,2]
[349955293,1737535841647,-500.0,0.00019445,2]
[349955294,1737535841656,-500.0,0.00019445,2]
[349955295,1737535841666,-500.0,0.00019445,2]
[349955296,1737535841675,-2713.11,0.00019445,2]
[349955297,1737535841686,-500.0,0.00019445,2]
[349955298,1737535841696,-500.0,0.00019445,2]
[349955299,1737535841706,-292.42885973,0.00019445,2]
[349955300,1737535841715,-2398.07,0.00019445,2]
[349955301,1737535841725,-500.0,0.00019445,2]
[349955302,1737535841734,-508.44,0.00019445,2]
[349955303,1737535841743,-2259.96,0.00019445,2]
[349955304,1737535841754,-500.0,0.00019445,2]
[349955305,1737535841764,-500.0,0.00019445,2]
[349955306,1737535841773,-1542.11,0.00019445,2]
[349955307,1737535841783,-500.0,0.00019445,2]
[349955308,1737535841793,-1046.31,0.00019445,2]
[349955309,1737535841802,-500.0,0.00019445,2]
[349955310,1737535841811,-500.0,0.00019445,2]
[349955311,1737535841821,-629.06753449,0.00019445,2]
[349955312,1737535841832,-876.07,0.00019445,2]
[349955313,1737535841841,-500.0,0.00019445,2]
[349955314,1737535841851,-2654.27,0.00019445,2]
[349955315,1737535841862,-507.25732807,0.00019445,2]
[349955316,1737535841872,-500.0,0.00019445,2]
[349955317,1737535841881,-500.0,0.00019445,2]
[349955318,1737535841891,-588.37,0.00019445,2]
[349955319,1737535841901,-500.0,0.00019445,2]
[349955320,1737535841911,-1263.25,0.00019445,2]
[349955321,1737535841925,-500.0,0.00019445,2]
[349955322,1737535841935,-345.09359248,0.00019445,2]
[349955323,1737535841945,-588.54,0.00019445,2]
[349955324,1737535841954,-227.93293432,0.00019445,2]
[349955325,1737535841963,-505.15402507,0.00019446,2]
[349955326,1737535841973,-500.0,0.00019446,2]
[349955327,1737535841982,-337.30517856,0.00019446,2]
[349955328,1737535841993,-500.0,0.00019446,2]
[349955329,1737535842003,-623.1,0.00019446,2]
[349955330,1737535842012,-500.0,0.00019446,2]
[349955331,1737535842021,-500.0,0.00019446,2]
[349955332,1737535842031,-337.32953058,0.00019446,2]
[349955333,1737535842041,-500.0,0.00019446,2]
[349955334,1737535842051,-500.0,0.00019446,2]
[349955335,1737535842060,-500.0,0.00019446,2]
[349955336,1737535842069,-500.0,0.00019446,2]
[349955337,1737535842079,-500.0,0.00019446,2]
[349955338,1737535842089,-503.59273306,0.00019446,2]
[349955339,1737535842099,-500.0,0.00019446,2]
[349955340,1737535842110,-500.0,0.00019446,2]
[349955341,1737535842120,-500.0,0.00019446,2]
[349955342,1737535842133,-500.0,0.00019446,2]
[349955343,1737535842142,-500.0,0.00019446,2]
[349955344,1737535842152,-500.0,0.00019446,2]
[349955345,1737535842162,-500.0,0.00019446,2]
[349955346,1737535842171,-500.0,0.00019446,2]
[349955347,1737535842184,-523.54495523,0.00019446,2]
[349955348,1737535842194,-502.23921816,0.00019446,2]
[349955349,1737535842203,-506.60787056,0.00019446,2]
[349955350,1737535842214,-500.0,0.00019446,2]
[349955351,1737535842223,-500.0,0.00019446,2]
[349955352,1737535842233,-500.0,0.00019446,2]
[349955353,1737535842242,-500.0,0.00019446,2]
[349955354,1737535842252,-519.9297751,0.00019446,2]
[349955355,1737535842261,-500.0,0.00019446,2]
[349955356,1737535842271,-500.0,0.00019446,2]
[349955357,1737535842281,-500.0,0.00019446,2]
[349955358,1737535842290,-500.0,0.00019446,2]
[349955359,1737535842299,-500.0,0.00019446,2]
[349955360,1737535842309,-500.0,0.00019446,2]
[349955361,1737535842318,-500.0,0.00019446,2]
[349955362,1737535842328,-500.0,0.00019446,2]
[349955363,1737535842337,-500.0,0.00019446,2]
[349955364,1737535842347,-500.0,0.00019446,2]
[349955365,1737535842357,-500.0,0.00019446,2]
[349955366,1737535842366,-500.0,0.00019446,2]
[349955367,1737535842375,-500.0,0.00019446,2]
[349955368,1737535842384,-500.0,0.00019446,2]
[349955369,1737535842394,-500.0,0.00019446,2]
[349955370,1737535842403,-504.95784729,0.00019446,2]
[349955371,1737535842413,-505.26084186,0.00019446,2]
[349955372,1737535842423,-500.0,0.00019446,2]
[349955373,1737535842435,-500.0,0.00019446,2]
[349955374,1737535842444,-500.0,0.00019446,2]
[349955375,1737535842453,-500.0,0.00019446,2]
[349955376,1737535842462,-500.0,0.00019446,2]
[349955377,1737535842471,-500.0,0.00019446,2]
[349955378,1737535842480,-500.0,0.00019446,2]
[349955379,1737535842489,-500.0,0.00019446,2]
[349955380,1737535842498,-500.0,0.00019446,2]
[349955381,1737535842507,-468.71514508,0.00019446,2]
[349955382,1737535842517,-906.12,0.00019446,2]
[349955383,1737535842526,-500.0,0.00019446,2]
[349955384,1737535842536,-500.0,0.00019446,2]
[349955385,1737535842545,-512.52384005,0.00019446,2]
[349955386,1737535842554,-500.0,0.00019446,2]
[349955387,1737535842564,-426.15055854,0.00019446,2]
[349955388,1737535842574,-500.0,0.00019446,2]
[349955389,1737535842584,-557.75,0.00019446,2]
[349955390,1737535842594,-500.0,0.00019446,2]
[349955391,1737535842603,-500.0,0.00019446,2]
[349955392,1737535842613,-500.0,0.00019446,2]
[349955393,1737535842623,-500.0,0.00019446,2]
[349955394,1737535842632,-500.0,0.00019446,2]
[349955395,1737535842642,-500.0,0.00019446,2]
[349955396,1737535842651,-507.25806282,0.00019446,2]
[349955397,1737535842661,-500.0,0.00019446,2]
[349955398,1737535842671,-500.0,0.00019446,2]
[349955399,1737535842685,-500.0,0.00019446,2]
[349955400,1737535842696,-500.0,0.00019446,2]
[349955401,1737535842707,-500.0,0.00019446,2]
[349955402,1737535842717,-500.0,0.00019446,2]
[349955403,1737535842727,-500.0,0.00019446,2]
[349955404,1737535842737,-500.0,0.00019446,2]
[349955405,1737535842747,-500.0,0.00019446,2]
[349955406,1737535842757,-500.0,0.00019446,2]
[349955407,1737535842767,-500.0,0.00019446,2]
[349955408,1737535842776,-502.85577398,0.00019446,2]
[349955409,1737535842786,-500.0,0.00019446,2]
[349955410,1737535842796,-500.0,0.00019446,2]
[349955411,1737535842806,-509.52724837,0.00019446,2]
[349955412,1737535842816,-500.0,0.00019446,2]
[349955413,1737535842826,-500.49161057,0.00019446,2]
[349955414,1737535842835,-504.77632521,0.00019446,2]
[349955415,1737535842845,-505.4988823,0.00019446,2]
[349955416,1737535842855,-500.0,0.00019446,2]
[349955417,1737535842864,-500.0,0.00019446,2]
[349955418,1737535842874,-500.0,0.00019446,2]
[349955419,1737535842884,-523.97,0.00019446,2]
[349955420,1737535842894,-500.0,0.00019446,2]
[349955421,1737535842903,-500.0,0.00019446,2]
[349955422,1737535842914,-500.0,0.00019446,2]
[349955423,1737535842927,-500.0,0.00019446,2]
[349955424,1737535842940,-500.0,0.00019446,2]
[349955425,1737535842950,-158.082972,0.00019446,2]
[349955426,1737535842961,-500.0,0.00019446,2]
[349955427,1737535842971,-336.81214281,0.00019446,2]
[349955428,1737535842980,-500.0,0.00019446,2]
[349955429,1737535842990,-500.0,0.00019446,2]
[349955430,1737535843002,-500.0,0.00019446,2]
[349955431,1737535843012,-163.72946289,0.00019446,2]
[349955432,1737535843021,-684.22,0.00019446,2]
[349955433,1737535843031,-500.0,0.00019446,2]
[349955435,1737535843042,-500.0,0.00019446,2]
[349955436,1737535843051,-508.52794617,0.00019446,2]
[349955437,1737535843062,-500.0,0.00019446,2]
[349955438,1737535843073,-500.76,0.00019446,2]
[349955439,1737535843083,-500.0,0.00019446,2]
[349955440,1737535843092,-504.22643919,0.00019446,2]
[349955441,1737535843102,-500.0,0.00019446,2]
[349955443,1737535843112,-397.74543399,0.00019446,7]
[349955445,1737535843122,-500.0,0.00019446,2]
[349955447,1737535843132,-500.0,0.00019446,2]
[349955449,1737535843142,-500.0,0.00019446,2]
[349955450,1737535843151,-507.89218134,0.00019446,2]
[349955452,1737535843160,-500.0,0.00019446,2]
[349955454,1737535843169,-500.0,0.00019446,2]
[349955456,1737535843179,-500.0,0.00019446,2]
[349955459,1737535843190,-500.0,0.00019446,2]
[349955462,1737535843199,-500.0,0.00019446,2]
[349955465,1737535843209,-500.0,0.00019446,2]
[349955468,1737535843219,-505.53640474,0.00019446,2]
[349955470,1737535843232,-500.0,0.00019446,2]
[349955472,1737535843241,-500.0,0.00019446,2]
[349955474,1737535843251,-500.0,0.00019446,2]
[349955475,1737535843260,-500.0,0.00019446,2]
[349955476,1737535843270,-500.0,0.00019446,2]
[349955477,1737535843279,-500.0,0.00019446,2]
[349955478,1737535843288,-500.0,0.00019446,2]
[349955479,1737535843298,-500.0,0.00019446,2]
[349955480,1737535843308,-500.0,0.00019446,2]
[349955481,1737535843317,-500.0,0.00019446,2]
[349955482,1737535843326,-891.46,0.00019446,2]
[349955483,1737535843335,-500.0,0.00019446,2]
[349955484,1737535843344,-626.77,0.00019446,2]
[349955485,1737535843354,-974.67,0.00019446,2]
[349955486,1737535843364,-500.0,0.00019446,2]
[349955487,1737535843375,-500.0,0.00019446,2]
[349955488,1737535843385,-500.0,0.00019446,2]
[349955489,1737535843394,-500.0,0.00019446,2]
[349955490,1737535843403,-667.94,0.00019446,2]
[349955491,1737535843412,-500.0,0.00019446,2]
[349955492,1737535843422,-1171.25,0.00019446,2]
[349955493,1737535843433,-504.55324492,0.00019446,2]
[349955494,1737535843443,-500.0,0.00019446,2]
[349955495,1737535843452,-720.08,0.00019446,2]
[349955496,1737535843462,-1121.27,0.00019446,2]
[349955497,1737535843471,-500.0,0.00019446,2]
[349955498,1737535843481,-500.0,0.00019446,2]
[349955499,1737535843490,-500.0,0.00019446,2]
[349955500,1737535843499,-761.43,0.00019446,2]
[349955501,1737535843509,-500.0,0.00019446,2]
[349955502,1737535843519,-500.0,0.00019446,2]
[349955503,1737535843528,-246.48262511,0.00019446,2]
[349955504,1737535843537,-500.0,0.00019446,2]
[349955505,1737535843547,-885.44,0.00019446,2]
[349955506,1737535843557,-500.0,0.00019446,2]
[349955507,1737535843567,-152.82163206,0.00019446,2]
[349955508,1737535843576,-593.11,0.00019446,2]
[349955511,1737535843585,-500.0,0.00019446,2]
[349955512,1737535843748,-500.0,0.00019446,2]
[349955513,1737535843759,-810.91,0.00019446,2]
[349955514,1737535843768,-500.0,0.00019446,2]
[349955515,1737535843778,-500.0,0.00019446,2]
[349955516,1737535843787,-797.59,0.00019446,2]
[349955517,1737535843796,-347.59210135,0.00019446,2]
[349955518,1737535843807,-500.0,0.00019446,2]
[349955519,1737535843816,-500.0,0.00019446,2]
[349955520,1737535843825,-500.0,0.00019446,2]
[349955521,1737535843834,-607.39,0.00019446,2]
[349955522,1737535843843,-500.0,0.00019446,2]
[349955523,1737535843853,-500.0,0.00019446,2]
[349955524,1737535843862,-500.0,0.00019446,2]
[349955525,1737535843872,-500.0,0.00019446,2]
[349955526,1737535843882,-300.0,0.00019446,2]
[349955527,1737535843891,-669.28,0.00019446,2]
[349955528,1737535843902,-500.0,0.00019446,2]
[349955529,1737535843912,-500.0,0.00019446,2]
[349955530,1737535843925,-500.0,0.00019446,2]
[349955531,1737535843935,-500.0,0.00019446,2]
[349955532,1737535843944,-500.0,0.00019446,2]
[349955533,1737535843955,-500.0,0.00019446,2]
[349955534,1737535843965,-500.0,0.00019446,2]
[349955535,1737535843974,-500.0,0.00019446,2]
[349955536,1737535843983,-500.0,0.00019446,2]
[349955537,1737535843992,-500.0,0.00019446,2]
[349955538,1737535844003,-500.0,0.00019446,2]
[349955539,1737535844013,-520.99643937,0.00019446,2]
[349955540,1737535844022,-500.0,0.00019446,2]
[349955541,1737535844031,-500.0,0.00019446,2]
[349955542,1737535844041,-500.0,0.00019446,2]
[349955543,1737535844050,-500.0,0.00019446,2]
[349955544,1737535844059,-500.0,0.00019446,2]
[349955545,1737535844068,-500.0,0.00019446,2]
[349955546,1737535844077,-500.0,0.00019446,2]
[349955547,1737535844087,-500.0,0.00019446,2]
[349955548,1737535844096,-500.0,0.00019446,2]
[349955549,1737535844106,-500.0,0.00019446,2]
[349955550,1737535844115,-500.0,0.00019446,2]
[349955551,1737535844124,-500.0,0.00019446,2]
[349955552,1737535844134,-822.84,0.00019446,2]
[349955553,1737535844143,-500.0,0.00019446,2]
[349955554,1737535844152,-500.0,0.00019446,2]
[349955555,1737535844162,-500.0,0.00019446,2]
[349955556,1737535844172,-984.18,0.00019446,2]
[349955557,1737535844182,-500.0,0.00019446,2]
[349955558,1737535844192,-500.0,0.00019446,2]
[349955559,1737535844202,-500.0,0.00019446,2]
[349955560,1737535844211,-500.0,0.00019446,2]
[349955561,1737535844220,-500.0,0.00019446,2]
[349955562,1737535844229,-500.0,0.00019446,2]
[349955563,1737535844239,-1080.22,0.00019446,2]
[349955564,1737535844248,-500.0,0.00019446,2]
[349955565,1737535844258,-500.0,0.00019446,2]
[349955566,1737535844267,-500.0,0.00019446,2]
[349955567,1737535844277,-500.0,0.00019446,2]
[349955568,1737535844287,-500.0,0.00019446,2]
[349955569,1737535844298,-500.0,0.00019446,2]
[349955570,1737535844309,-500.0,0.00019446,2]
[349955571,1737535844319,-500.0,0.00019446,2]
[349955572,1737535844329,-500.0,0.00019446,2]
[349955573,1737535844339,-500.0,0.00019446,2]
[349955574,1737535844348,-500.0,0.00019446,2]
[349955575,1737535844358,-500.0,0.00019446,2]
[349955576,1737535844367,-500.0,0.00019446,2]
[349955577,1737535844377,-500.0,0.00019446,2]
[349955578,1737535844386,-500.0,0.00019446,2]
[349955579,1737535844395,-500.0,0.00019446,2]
[349955580,1737535844405,-500.0,0.00019446,2]
[349955581,1737535844414,-500.0,0.00019446,2]
[349955582,1737535844424,-500.0,0.00019446,2]
[349955583,1737535844435,-500.0,0.00019446,2]
[349955584,1737535844445,-169.47702878,0.00019446,2]
[349955585,1737535844456,-500.0,0.00019446,2]
[349955586,1737535844466,-500.0,0.00019446,2]
[349955587,1737535844475,-500.0,0.00019446,2]
[349955588,1737535844485,-502.19,0.00019446,2]
[349955589,1737535844494,-500.0,0.00019446,2]
[349955590,1737535844504,-500.0,0.00019446,2]
[349955591,1737535844513,-500.0,0.00019446,2]
[349955592,1737535844522,-543.73,0.00019446,2]
[349955593,1737535844532,-500.0,0.00019446,2]
[349955594,1737535844541,-500.0,0.00019446,2]
[349955595,1737535844551,-500.0,0.00019446,2]
[349955596,1737535844560,-1225.68,0.00019446,2]
[349955597,1737535844569,-500.0,0.00019446,2]
[349955598,1737535844579,-632.50862155,0.00019446,2]
[349955599,1737535844588,-1080.05,0.00019446,2]
[349955600,1737535844598,-501.75918858,0.00019446,2]
[349955601,1737535844607,-500.0,0.00019446,2]
[349955602,1737535844617,-388.80165442,0.00019446,2]
[349955603,1737535844626,-500.0,0.00019446,2]
[349955604,1737535844636,-500.0,0.00019446,2]
[349955605,1737535844645,-1315.5,0.00019446,2]
[349955606,1737535844654,-500.0,0.00019446,2]
[349955607,1737535844664,-5326.32,0.00019446,2]
[349955608,1737535844674,-161.30204374,0.00019446,2]
[349955609,1737535844684,-1134.22,0.00019446,2]
[349955610,1737535844693,-500.0,0.00019446,2]